[Event "*** Titled Tuesday Blitz"]
[Site "Chess.com"]
[Date "2020.11.03"]
[Round "4"]
[White "Borsuk_Konstantin"]
[Black "SHIVACalypso"]
[Result "1-0"]
[WhiteElo "2594"]
[BlackElo "2332"]
[TimeControl "180+1"]
[EndTime "10:42:00 PST"]
[Termination "Borsuk_Konstantin won on time"]

1. d4 {[%clk 0:03:00.9]} 1... e6 {[%clk 0:03:00.2]} 2. c4 {[%clk 0:03:00.4]}
2... Nf6 {[%clk 0:03:00.1]} 3. Nc3 {[%clk 0:02:58.8]} 3... Bb4 {[%clk
0:02:59.5]} 4. Qc2 {[%clk 0:02:58.9]} 4... b6 {[%clk 0:02:59.3]} 5. f3 {[%clk
0:02:55.1]} 5... c5 {[%clk 0:02:54.2]} 6. a3 {[%clk 0:02:53.7]} 6... cxd4 {[%clk
0:02:34.6]} 7. axb4 {[%clk 0:02:52.8]} 7... dxc3 {[%clk 0:02:34.5]} 8. bxc3
{[%clk 0:02:43.5]} 8... Bb7 {[%clk 0:02:34.4]} 9. e4 {[%clk 0:02:41.7]} 9... d5
{[%clk 0:02:33.4]} 10. cxd5 {[%clk 0:02:38.9]} 10... exd5 {[%clk 0:02:34.3]} 11.
e5 {[%clk 0:02:39.2]} 11... Nfd7 {[%clk 0:02:34.3]} 12. f4 {[%clk 0:02:38.7]}
12... O-O {[%clk 0:02:28.5]} 13. Nf3 {[%clk 0:02:37.1]} 13... Re8 {[%clk
0:02:27.7]} 14. Bd3 {[%clk 0:02:36.9]} 14... g6 {[%clk 0:02:25.2]} 15. h4 {[%clk
0:02:30.5]} 15... f6 {[%clk 0:02:23.5]} 16. Bxg6 {[%clk 0:02:22.1]} 16... hxg6
{[%clk 0:02:18.6]} 17. Qxg6+ {[%clk 0:02:21.7]} 17... Kh8 {[%clk 0:02:19]} 18.
Ng5 {[%clk 0:02:17.8]} 18... Re7 {[%clk 0:02:05.9]} 19. e6 {[%clk 0:01:49.2]}
19... Nc6 {[%clk 0:01:31.1]} 20. Kf2 {[%clk 0:01:17.4]} 20... Nde5 {[%clk
0:01:25.7]} 21. Qxf6+ {[%clk 0:00:56.9]} 21... Kg8 {[%clk 0:01:22.6]} 22. fxe5
{[%clk 0:00:52.8]} 22... Qf8 {[%clk 0:01:16.7]} 23. Kg3 {[%clk 0:00:47.4]} 23...
Qg7 {[%clk 0:01:11.5]} 24. b5 {[%clk 0:00:40.9]} 24... Nd8 {[%clk 0:01:09.6]}
25. Ba3 {[%clk 0:00:28.4]} 25... Re8 {[%clk 0:00:57.8]} 26. e7 {[%clk
0:00:26.6]} 26... Nf7 {[%clk 0:00:56.2]} 27. Raf1 {[%clk 0:00:26.5]} 27... Nxe5
{[%clk 0:00:53]} 28. Qe6+ {[%clk 0:00:26]} 28... Kh8 {[%clk 0:00:49.1]} 29. Rf6
{[%clk 0:00:26]} 29... Ng6 {[%clk 0:00:21.6]} 30. Rhf1 {[%clk 0:00:20.6]} 30...
Bc8 {[%clk 0:00:18.7]} 31. Qc6 {[%clk 0:00:12.5]} 31... Bd7 {[%clk 0:00:11.8]}
32. Qxd7 {[%clk 0:00:11.4]} 32... Ne5 {[%clk 0:00:04.5]} 33. Qe6 {[%clk
0:00:11]} 33... Ng6 {[%clk 0:00:03.2]} 34. Rxg6 {[%clk 0:00:11.1]} 34... Qxc3+
{[%clk 0:00:03.4]} 35. Rf3 {[%clk 0:00:11.4]} 35... Rxe7 {[%clk 0:00:01.4]} 36.
Rh6+ {[%clk 0:00:09]} 1-0

[Event "*** Titled Tuesday Blitz"]
[Site "Chess.com"]
[Date "2020.11.03"]
[Round "4"]
[White "cukin84"]
[Black "Misticpikachu"]
[Result "0-1"]
[WhiteElo "2077"]
[BlackElo "2497"]
[TimeControl "180+1"]
[EndTime "10:42:00 PST"]
[Termination "Misticpikachu won by checkmate"]

1. e4 {[%clk 0:03:00.9]} 1... c5 {[%clk 0:02:59.7]} 2. Nc3 {[%clk 0:03:00.1]}
2... e6 {[%clk 0:02:59.7]} 3. f4 {[%clk 0:02:59.6]} 3... d5 {[%clk 0:03:00]} 4.
Nf3 {[%clk 0:02:59.4]} 4... dxe4 {[%clk 0:02:55.4]} 5. Nxe4 {[%clk 0:02:58.8]}
5... Nf6 {[%clk 0:02:55.7]} 6. Nxf6+ {[%clk 0:02:54.1]} 6... Qxf6 {[%clk
0:02:56.6]} 7. d3 {[%clk 0:02:52.5]} 7... Nc6 {[%clk 0:02:52.9]} 8. Be2 {[%clk
0:02:51.8]} 8... Bd6 {[%clk 0:02:49.7]} 9. g3 {[%clk 0:02:49.6]} 9... O-O {[%clk
0:02:47.7]} 10. O-O {[%clk 0:02:49.1]} 10... b6 {[%clk 0:02:47.2]} 11. Ng5
{[%clk 0:02:41.6]} 11... Bb7 {[%clk 0:02:42.1]} 12. Ne4 {[%clk 0:02:40.9]} 12...
Qe7 {[%clk 0:02:42.5]} 13. Nxd6 {[%clk 0:02:39.9]} 13... Qxd6 {[%clk 0:02:43.4]}
14. Bf3 {[%clk 0:02:39.8]} 14... Rab8 {[%clk 0:02:39]} 15. Be3 {[%clk 0:02:39]}
15... Nd4 {[%clk 0:02:33.5]} 16. Bxb7 {[%clk 0:02:33.3]} 16... Rxb7 {[%clk
0:02:34.4]} 17. c3 {[%clk 0:02:31.9]} 17... Nf5 {[%clk 0:02:34]} 18. Bf2 {[%clk
0:02:26.2]} 18... Rd8 {[%clk 0:02:32.2]} 19. g4 {[%clk 0:02:15.7]} 19... Ne7
{[%clk 0:02:27.7]} 20. d4 {[%clk 0:02:14.4]} 20... Qxf4 {[%clk 0:02:10.7]} 21.
Bg3 {[%clk 0:02:13]} 21... Qe3+ {[%clk 0:02:09.7]} 22. Bf2 {[%clk 0:02:12.9]}
22... Qg5 {[%clk 0:02:07.2]} 23. Qf3 {[%clk 0:02:06.5]} 23... Qd5 {[%clk
0:01:55.1]} 24. Qf4 {[%clk 0:01:59.4]} 24... Ng6 {[%clk 0:01:50]} 25. Qg3 {[%clk
0:01:53.3]} 25... cxd4 {[%clk 0:01:41.6]} 26. Bxd4 {[%clk 0:01:52.4]} 26... e5
{[%clk 0:01:37.7]} 27. Be3 {[%clk 0:01:49.6]} 27... Rbd7 {[%clk 0:01:27.8]} 28.
Rf2 {[%clk 0:01:39.6]} 28... Qe6 {[%clk 0:01:18.5]} 29. Raf1 {[%clk 0:01:37.5]}
29... Rd1 {[%clk 0:01:16.5]} 30. Qf3 {[%clk 0:01:34.1]} 30... Rxf1+ {[%clk
0:01:14.6]} 31. Rxf1 {[%clk 0:01:34.2]} 31... Qxa2 {[%clk 0:01:07]} 32. h4
{[%clk 0:01:29.9]} 32... Nxh4 {[%clk 0:00:54.7]} 33. Qe4 {[%clk 0:01:23.5]}
33... Ng6 {[%clk 0:00:51]} 34. Bg5 {[%clk 0:01:10.4]} 34... Qd5 {[%clk
0:00:44.2]} 35. Qa4 {[%clk 0:01:04.4]} 35... Rf8 {[%clk 0:00:39.6]} 36. Qxa7
{[%clk 0:01:01.8]} 36... h6 {[%clk 0:00:34.7]} 37. Be3 {[%clk 0:00:58.9]} 37...
Qe4 {[%clk 0:00:32.7]} 38. Qxb6 {[%clk 0:00:53.8]} 38... Qxg4+ {[%clk
0:00:32.6]} 39. Kf2 {[%clk 0:00:53]} 39... Nf4 {[%clk 0:00:29.8]} 40. Bxf4
{[%clk 0:00:50.5]} 40... exf4 {[%clk 0:00:24.9]} 41. Qc6 {[%clk 0:00:40.8]}
41... Qg3+ {[%clk 0:00:17.9]} 42. Ke2 {[%clk 0:00:40.9]} 42... Rd8 {[%clk
0:00:14.8]} 43. Rf3 {[%clk 0:00:33.8]} 43... Qg2+ {[%clk 0:00:13.5]} 44. Ke1
{[%clk 0:00:30.6]} 44... Qg1+ {[%clk 0:00:10]} 45. Ke2 {[%clk 0:00:29.2]} 45...
Qd1+ {[%clk 0:00:07.4]} 46. Kf2 {[%clk 0:00:29.2]} 46... Rd2# {[%clk 0:00:07.9]}
0-1

[Event "*** Titled Tuesday Blitz"]
[Site "Chess.com"]
[Date "2020.11.03"]
[Round "4"]
[White "NewBornNow"]
[Black "woodhy"]
[Result "1-0"]
[WhiteElo "2648"]
[BlackElo "2466"]
[TimeControl "180+1"]
[EndTime "10:42:01 PST"]
[Termination "NewBornNow won by resignation"]

1. e4 {[%clk 0:02:47.4]} 1... e6 {[%clk 0:03:00]} 2. d4 {[%clk 0:02:45.4]} 2...
d5 {[%clk 0:02:59.5]} 3. Nc3 {[%clk 0:02:45.8]} 3... Bb4 {[%clk 0:02:58.8]} 4.
e5 {[%clk 0:02:44.6]} 4... c5 {[%clk 0:02:58.6]} 5. a3 {[%clk 0:02:44.5]} 5...
Bxc3+ {[%clk 0:02:58.6]} 6. bxc3 {[%clk 0:02:45.4]} 6... Ne7 {[%clk 0:02:59.5]}
7. Nf3 {[%clk 0:02:44.8]} 7... b6 {[%clk 0:02:59.1]} 8. Bb5+ {[%clk 0:02:40.6]}
8... Bd7 {[%clk 0:02:59]} 9. Bd3 {[%clk 0:02:36.8]} 9... c4 {[%clk 0:02:37.4]}
10. Be2 {[%clk 0:02:33]} 10... Ba4 {[%clk 0:02:37.3]} 11. h4 {[%clk 0:02:27.8]}
11... Nbc6 {[%clk 0:02:28.8]} 12. h5 {[%clk 0:02:26.8]} 12... Kd7 {[%clk
0:02:02.8]} 13. h6 {[%clk 0:02:21.8]} 13... gxh6 {[%clk 0:02:01.5]} 14. Bxh6
{[%clk 0:02:18.3]} 14... Qg8 {[%clk 0:01:44.3]} 15. Bg5 {[%clk 0:02:08.7]} 15...
Qg6 {[%clk 0:01:11.1]} 16. Kd2 {[%clk 0:01:47.6]} 16... Ng8 {[%clk 0:00:54.9]}
17. Kc1 {[%clk 0:01:24.3]} 17... f6 {[%clk 0:00:52.8]} 18. exf6 {[%clk 0:01:22]}
18... h6 {[%clk 0:00:52.6]} 19. Kb2 {[%clk 0:00:51.4]} 19... Nxf6 {[%clk
0:00:48.4]} 20. Bxf6 {[%clk 0:00:50.7]} 20... Qxf6 {[%clk 0:00:49.3]} 21. Qd2
{[%clk 0:00:38.4]} 21... Rag8 {[%clk 0:00:44.5]} 22. g3 {[%clk 0:00:37.7]} 22...
Kc7 {[%clk 0:00:31.5]} 23. Rh4 {[%clk 0:00:37.2]} 23... Ne7 {[%clk 0:00:16.7]}
24. Rah1 {[%clk 0:00:33.5]} 24... Nf5 {[%clk 0:00:16.5]} 25. Qf4+ {[%clk
0:00:30.6]} 25... Kb7 {[%clk 0:00:15.9]} 26. g4 {[%clk 0:00:30.1]} 26... Nxh4
{[%clk 0:00:09.3]} 27. Qxf6 {[%clk 0:00:26.8]} 27... Nxf3 {[%clk 0:00:09.5]} 28.
Bxf3 {[%clk 0:00:24.5]} 28... Rf8 {[%clk 0:00:09.1]} 29. Qe7+ {[%clk 0:00:16.6]}
29... Ka6 {[%clk 0:00:09.1]} 30. Rh3 {[%clk 0:00:16.6]} 30... Rf4 {[%clk
0:00:08.2]} 31. Qxe6 {[%clk 0:00:16]} 31... Rhf8 {[%clk 0:00:08.6]} 32. Qxd5
{[%clk 0:00:15.5]} 32... Bb5 {[%clk 0:00:08]} 33. Qb7+ {[%clk 0:00:13.9]} 33...
Ka5 {[%clk 0:00:08.5]} 34. Qxa7+ {[%clk 0:00:13.5]} 34... Ba6 {[%clk 0:00:08.6]}
35. Bb7 {[%clk 0:00:13.1]} 1-0

[Event "*** Titled Tuesday Blitz"]
[Site "Chess.com"]
[Date "2020.11.03"]
[Round "4"]
[White "korbul"]
[Black "BillieKimbah"]
[Result "0-1"]
[WhiteElo "2551"]
[BlackElo "2854"]
[TimeControl "180+1"]
[EndTime "10:42:02 PST"]
[Termination "BillieKimbah won by resignation"]

1. e4 {[%clk 0:03:00.9]} 1... c6 {[%clk 0:02:57.9]} 2. d4 {[%clk 0:03:00.1]}
2... d5 {[%clk 0:02:58.1]} 3. e5 {[%clk 0:03:00.4]} 3... c5 {[%clk 0:02:54.4]}
4. Nf3 {[%clk 0:03:00.2]} 4... Nc6 {[%clk 0:02:53.7]} 5. c4 {[%clk 0:02:57.2]}
5... cxd4 {[%clk 0:02:49.6]} 6. Nxd4 {[%clk 0:02:54.3]} 6... e6 {[%clk
0:02:49.3]} 7. Nc3 {[%clk 0:02:50.3]} 7... Bc5 {[%clk 0:02:48.5]} 8. Be3 {[%clk
0:02:45.2]} 8... Bxd4 {[%clk 0:02:25.1]} 9. Bxd4 {[%clk 0:02:42.5]} 9... dxc4
{[%clk 0:02:25.5]} 10. Bc5 {[%clk 0:02:25.8]} 10... Qa5 {[%clk 0:02:20.8]} 11.
Bd6 {[%clk 0:02:05.9]} 11... Nxe5 {[%clk 0:02:08.8]} 12. Qd4 {[%clk 0:02:01]}
12... f6 {[%clk 0:02:07.8]} 13. f4 {[%clk 0:01:53.1]} 13... Nc6 {[%clk
0:01:56.5]} 14. Qxc4 {[%clk 0:01:48]} 14... Nge7 {[%clk 0:01:56.2]} 15. O-O-O
{[%clk 0:01:45.2]} 15... O-O {[%clk 0:01:50.9]} 16. g4 {[%clk 0:01:45.2]} 16...
Re8 {[%clk 0:01:40.9]} 17. Bd3 {[%clk 0:01:42.8]} 17... Bd7 {[%clk 0:01:33.7]}
18. g5 {[%clk 0:01:31.3]} 18... f5 {[%clk 0:01:30.6]} 19. Rhe1 {[%clk
0:01:22.2]} 19... Rac8 {[%clk 0:01:22.4]} 20. Kb1 {[%clk 0:01:16.9]} 20... a6
{[%clk 0:01:12.3]} 21. Rxe6 {[%clk 0:00:33.5]} 21... Bxe6 {[%clk 0:01:10.6]} 22.
Qxe6+ {[%clk 0:00:33.1]} 22... Kh8 {[%clk 0:01:11.1]} 23. Qf7 {[%clk 0:00:22.5]}
23... Rcd8 {[%clk 0:00:57.4]} 24. Ba3 {[%clk 0:00:18.6]} 24... b5 {[%clk
0:00:46.9]} 25. Bxe7 {[%clk 0:00:09.1]} 25... Nxe7 {[%clk 0:00:41.9]} 26. h4
{[%clk 0:00:08.3]} 26... Qc7 {[%clk 0:00:32.8]} 27. h5 {[%clk 0:00:07.3]} 27...
Rf8 {[%clk 0:00:31.8]} 28. Qe6 {[%clk 0:00:06.8]} 28... Qd6 {[%clk 0:00:28.1]}
29. Qe2 {[%clk 0:00:07.7]} 29... b4 {[%clk 0:00:27.3]} 30. Na4 {[%clk
0:00:06.8]} 30... Nc6 {[%clk 0:00:26.5]} 31. h6 {[%clk 0:00:05.6]} 31... g6
{[%clk 0:00:23.1]} 32. Bc2 {[%clk 0:00:05.2]} 32... Nd4 {[%clk 0:00:23]} 33. Qd3
{[%clk 0:00:03.6]} 33... Qxf4 {[%clk 0:00:22.3]} 34. Qc4 {[%clk 0:00:01.5]}
34... Qxg5 {[%clk 0:00:20.1]} 35. Rc1 {[%clk 0:00:02.4]} 35... Qxh6 {[%clk
0:00:19.1]} 36. Nc5 {[%clk 0:00:03.3]} 36... Nxc2 {[%clk 0:00:18.3]} 37. Qxc2
{[%clk 0:00:02.4]} 37... Qd2 {[%clk 0:00:18.1]} 38. Nb7 {[%clk 0:00:03.3]} 38...
Qxc2+ {[%clk 0:00:18.1]} 39. Kxc2 {[%clk 0:00:03.9]} 39... Rc8+ {[%clk
0:00:18.3]} 0-1

[Event "*** Titled Tuesday Blitz"]
[Site "Chess.com"]
[Date "2020.11.03"]
[Round "4"]
[White "Jumbo"]
[Black "xberli"]
[Result "1-0"]
[WhiteElo "2848"]
[BlackElo "2548"]
[TimeControl "180+1"]
[EndTime "10:42:02 PST"]
[Termination "Jumbo won by checkmate"]

1. d4 {[%clk 0:03:00.9]} 1... Nf6 {[%clk 0:02:58.2]} 2. c4 {[%clk 0:03:00.4]}
2... g6 {[%clk 0:02:58.2]} 3. Nc3 {[%clk 0:02:58.5]} 3... d5 {[%clk 0:02:57.9]}
4. cxd5 {[%clk 0:02:53.1]} 4... Nxd5 {[%clk 0:02:58.8]} 5. e4 {[%clk 0:02:53.7]}
5... Nxc3 {[%clk 0:02:58.2]} 6. bxc3 {[%clk 0:02:54.6]} 6... Bg7 {[%clk
0:02:56.4]} 7. Be3 {[%clk 0:02:53.4]} 7... c5 {[%clk 0:02:54.9]} 8. Qd2 {[%clk
0:02:53.5]} 8... Qa5 {[%clk 0:02:53.2]} 9. Rb1 {[%clk 0:02:52.7]} 9... a6 {[%clk
0:02:52.4]} 10. Rc1 {[%clk 0:02:52.5]} 10... O-O {[%clk 0:02:51.9]} 11. Bd3
{[%clk 0:02:37.6]} 11... Nd7 {[%clk 0:02:40.6]} 12. Ne2 {[%clk 0:02:18.5]} 12...
e5 {[%clk 0:02:33.9]} 13. d5 {[%clk 0:01:28.4]} 13... b5 {[%clk 0:02:23.3]} 14.
h4 {[%clk 0:01:26.8]} 14... c4 {[%clk 0:01:58.5]} 15. Bb1 {[%clk 0:01:26.1]}
15... Nf6 {[%clk 0:01:28.8]} 16. f3 {[%clk 0:01:23.5]} 16... Qa3 {[%clk
0:01:22.7]} 17. g4 {[%clk 0:01:17.2]} 17... h5 {[%clk 0:00:47.6]} 18. gxh5
{[%clk 0:01:11.9]} 18... Nxh5 {[%clk 0:00:45.7]} 19. Rg1 {[%clk 0:01:12]} 19...
Bd7 {[%clk 0:00:33.1]} 20. Bh6 {[%clk 0:01:06.9]} 20... Qe7 {[%clk 0:00:24.4]}
21. Bg5 {[%clk 0:01:06.8]} 21... Qd6 {[%clk 0:00:19.6]} 22. Qe3 {[%clk
0:00:57.4]} 22... Kh7 {[%clk 0:00:15.3]} 23. Qf2 {[%clk 0:00:42.6]} 23... Rg8
{[%clk 0:00:11.9]} 24. Ng3 {[%clk 0:00:35.7]} 24... Nxg3 {[%clk 0:00:03.5]} 25.
Qxg3 {[%clk 0:00:34.5]} 25... f6 {[%clk 0:00:02.4]} 26. Be3 {[%clk 0:00:33.1]}
26... Be8 {[%clk 0:00:02.5]} 27. f4 {[%clk 0:00:31.5]} 27... Bf7 {[%clk
0:00:02.5]} 28. Ke2 {[%clk 0:00:28.9]} 28... Rae8 {[%clk 0:00:01.9]} 29. Rcf1
{[%clk 0:00:28.8]} 29... Bh6 {[%clk 0:00:02.3]} 30. fxe5 {[%clk 0:00:27.9]}
30... Rxe5 {[%clk 0:00:03.1]} 31. Bxh6 {[%clk 0:00:26.5]} 31... Kxh6 {[%clk
0:00:04]} 32. Qf4+ {[%clk 0:00:26.7]} 32... Kg7 {[%clk 0:00:04.3]} 33. Kd2
{[%clk 0:00:26]} 33... Rge8 {[%clk 0:00:04.8]} 34. Bc2 {[%clk 0:00:25.6]} 34...
Qc5 {[%clk 0:00:05.1]} 35. Rg3 {[%clk 0:00:23.6]} 35... Qd6 {[%clk 0:00:04.6]}
36. Kc1 {[%clk 0:00:21.9]} 36... f5 {[%clk 0:00:04.8]} 37. h5 {[%clk 0:00:18.7]}
37... fxe4 {[%clk 0:00:04.4]} 38. Qxf7+ {[%clk 0:00:18.2]} 38... Kh8 {[%clk
0:00:04.8]} 39. hxg6 {[%clk 0:00:15.1]} 39... e3 {[%clk 0:00:04.6]} 40. g7#
{[%clk 0:00:14.7]} 1-0

[Event "*** Titled Tuesday Blitz"]
[Site "Chess.com"]
[Date "2020.11.03"]
[Round "4"]
[White "Beca95"]
[Black "Gabrielian_Artur"]
[Result "1-0"]
[WhiteElo "2964"]
[BlackElo "2785"]
[TimeControl "180+1"]
[EndTime "10:42:03 PST"]
[Termination "Beca95 won on time"]

1. e4 {[%clk 0:03:00.9]} 1... c5 {[%clk 0:02:59.4]} 2. Nc3 {[%clk 0:03:00]} 2...
d6 {[%clk 0:02:59.2]} 3. f4 {[%clk 0:02:59.8]} 3... Nc6 {[%clk 0:02:58.2]} 4.
Bb5 {[%clk 0:02:59.2]} 4... Bd7 {[%clk 0:02:57.4]} 5. Bxc6 {[%clk 0:02:59.5]}
5... Bxc6 {[%clk 0:02:57.5]} 6. d3 {[%clk 0:03:00.4]} 6... e6 {[%clk 0:02:56.7]}
7. Nf3 {[%clk 0:03:00.7]} 7... Nf6 {[%clk 0:02:56.1]} 8. O-O {[%clk 0:02:59.9]}
8... Be7 {[%clk 0:02:56.1]} 9. b3 {[%clk 0:03:00]} 9... b5 {[%clk 0:02:52.7]}
10. Qe1 {[%clk 0:02:40]} 10... b4 {[%clk 0:02:51.3]} 11. Ne2 {[%clk 0:02:35.7]}
11... a5 {[%clk 0:02:46.3]} 12. a4 {[%clk 0:02:34.9]} 12... Rc8 {[%clk
0:02:37.5]} 13. Ng3 {[%clk 0:02:33.7]} 13... Bb7 {[%clk 0:02:33.4]} 14. h3
{[%clk 0:02:27.1]} 14... d5 {[%clk 0:02:27.9]} 15. e5 {[%clk 0:02:26.9]} 15...
Nd7 {[%clk 0:02:24.2]} 16. f5 {[%clk 0:02:27.2]} 16... Qb6 {[%clk 0:02:20.2]}
17. Nh5 {[%clk 0:02:24]} 17... Rg8 {[%clk 0:02:07.9]} 18. fxe6 {[%clk
0:02:13.2]} 18... fxe6 {[%clk 0:01:25.2]} 19. Qg3 {[%clk 0:02:11.7]} 19... Kd8
{[%clk 0:01:19.1]} 20. Be3 {[%clk 0:02:07.5]} 20... d4 {[%clk 0:01:17.5]} 21.
Bg5 {[%clk 0:02:07.3]} 21... Bxg5 {[%clk 0:01:00.2]} 22. Qxg5+ {[%clk
0:02:08.2]} 22... Kc7 {[%clk 0:01:00]} 23. Nd2 {[%clk 0:02:07.6]} 23... h6
{[%clk 0:00:52.5]} 24. Qg3 {[%clk 0:02:06]} 24... Rcf8 {[%clk 0:00:44.7]} 25.
Nc4 {[%clk 0:02:05]} 25... Qc6 {[%clk 0:00:41.6]} 26. Nxa5 {[%clk 0:02:01.5]}
26... Qd5 {[%clk 0:00:42]} 27. Nf4 {[%clk 0:02:01.4]} 27... Rxf4 {[%clk
0:00:38.9]} 28. Rxf4 {[%clk 0:02:02.3]} 28... Ba8 {[%clk 0:00:22.2]} 29. Rf7
{[%clk 0:02:01.3]} 29... Kb6 {[%clk 0:00:19.2]} 30. Nc4+ {[%clk 0:02:00]} 30...
Ka6 {[%clk 0:00:19.6]} 31. Raf1 {[%clk 0:01:59.3]} 31... g5 {[%clk 0:00:18.2]}
32. Qf3 {[%clk 0:01:47.4]} 32... Qxf3 {[%clk 0:00:16.1]} 33. gxf3 {[%clk
0:01:47.4]} 33... Nf8 {[%clk 0:00:13.9]} 34. Rc7 {[%clk 0:01:37.5]} 34... Ng6
{[%clk 0:00:12.8]} 35. Rxc5 {[%clk 0:01:36.2]} 35... Nh4 {[%clk 0:00:13]} 36.
Ra5+ {[%clk 0:01:34.6]} 36... Kb7 {[%clk 0:00:13.3]} 37. Nd6+ {[%clk 0:01:15.7]}
37... Kb6 {[%clk 0:00:10.9]} 38. Rb5+ {[%clk 0:01:15.8]} 38... Ka6 {[%clk
0:00:11.4]} 39. Ne4 {[%clk 0:01:16]} 39... h5 {[%clk 0:00:08.1]} 40. Kh2 {[%clk
0:01:14.5]} 40... Nf5 {[%clk 0:00:07.4]} 41. Nc5+ {[%clk 0:01:03.9]} 41... Ka7
{[%clk 0:00:07.6]} 42. Nxe6 {[%clk 0:01:03.8]} 42... Ne3 {[%clk 0:00:07.9]} 43.
Rg1 {[%clk 0:01:03.7]} 43... Bd5 {[%clk 0:00:06]} 44. Nxd4 {[%clk 0:00:59]}
44... Rc8 {[%clk 0:00:06.1]} 45. Rxg5 {[%clk 0:00:54.5]} 45... Bxf3 {[%clk
0:00:03.7]} 46. Rg7+ {[%clk 0:00:53.3]} 46... Ka8 {[%clk 0:00:03.4]} 47. Nxf3
{[%clk 0:00:50.2]} 47... Rxc2+ {[%clk 0:00:03.4]} 48. Kh1 {[%clk 0:00:50.5]} 1-0

[Event "*** Titled Tuesday Blitz"]
[Site "Chess.com"]
[Date "2020.11.03"]
[Round "4"]
[White "grunbergmihai"]
[Black "Vyacheslav_N"]
[Result "1-0"]
[WhiteElo "2474"]
[BlackElo "2310"]
[TimeControl "180+1"]
[EndTime "10:42:03 PST"]
[Termination "grunbergmihai won on time"]

1. Nf3 {[%clk 0:03:00.9]} 1... d5 {[%clk 0:02:57.3]} 2. c4 {[%clk 0:02:57.9]}
2... c6 {[%clk 0:02:58.2]} 3. g3 {[%clk 0:02:57.4]} 3... Bg4 {[%clk 0:02:57.6]}
4. Bg2 {[%clk 0:02:57.3]} 4... Bxf3 {[%clk 0:02:47.5]} 5. Bxf3 {[%clk
0:02:56.7]} 5... dxc4 {[%clk 0:02:48.4]} 6. Na3 {[%clk 0:02:55.7]} 6... Nf6
{[%clk 0:02:41.8]} 7. Nxc4 {[%clk 0:02:53.8]} 7... Nbd7 {[%clk 0:02:42.4]} 8. d4
{[%clk 0:02:51.2]} 8... e6 {[%clk 0:02:30.7]} 9. O-O {[%clk 0:02:50]} 9... h5
{[%clk 0:02:29.4]} 10. h4 {[%clk 0:02:48.5]} 10... Be7 {[%clk 0:02:26.1]} 11.
Bf4 {[%clk 0:02:45]} 11... Nb6 {[%clk 0:02:23.8]} 12. Ne5 {[%clk 0:02:41.1]}
12... Nbd5 {[%clk 0:02:21]} 13. Bg5 {[%clk 0:02:40.3]} 13... Nd7 {[%clk
0:02:13.1]} 14. Bxe7 {[%clk 0:02:36.7]} 14... Qxe7 {[%clk 0:02:07.8]} 15. e4
{[%clk 0:02:33.2]} 15... Nxe5 {[%clk 0:02:03.9]} 16. dxe5 {[%clk 0:02:31.9]}
16... Nb6 {[%clk 0:01:59]} 17. Bxh5 {[%clk 0:02:31]} 17... Nc4 {[%clk
0:01:50.6]} 18. Qe2 {[%clk 0:02:08.2]} 18... g6 {[%clk 0:01:37.2]} 19. Qxc4
{[%clk 0:02:03.4]} 19... Rxh5 {[%clk 0:01:34.6]} 20. f4 {[%clk 0:02:00.8]} 20...
Rd8 {[%clk 0:01:29.6]} 21. Rad1 {[%clk 0:01:59.9]} 21... Rh8 {[%clk 0:01:27.8]}
22. Kg2 {[%clk 0:01:53.4]} 22... Kf8 {[%clk 0:01:24.6]} 23. Rxd8+ {[%clk
0:01:43.3]} 23... Qxd8 {[%clk 0:01:24.5]} 24. f5 {[%clk 0:01:40.7]} 24... exf5
{[%clk 0:01:19.6]} 25. exf5 {[%clk 0:01:40.5]} 25... g5 {[%clk 0:01:20.5]} 26.
e6 {[%clk 0:01:30.3]} 26... gxh4 {[%clk 0:01:06.8]} 27. exf7 {[%clk 0:01:28.6]}
27... Qd2+ {[%clk 0:01:03.1]} 28. Rf2 {[%clk 0:01:26]} 28... h3+ {[%clk
0:01:03.4]} 29. Kf3 {[%clk 0:01:13.9]} 29... Qd1+ {[%clk 0:01:00.1]} 30. Re2
{[%clk 0:01:01.6]} 30... h2 {[%clk 0:00:31.7]} 31. Qc5+ {[%clk 0:00:57]} 31...
Kg7 {[%clk 0:00:24.9]} 32. Qe5+ {[%clk 0:00:56.5]} 32... Kh7 {[%clk 0:00:19.7]}
33. Qxh8+ {[%clk 0:00:54.3]} 33... Kxh8 {[%clk 0:00:14.7]} 34. f8=Q+ {[%clk
0:00:54.3]} 34... Kh7 {[%clk 0:00:15.1]} 35. Qf7+ {[%clk 0:00:53.7]} 35... Kh8
{[%clk 0:00:15.6]} 36. Qh5+ {[%clk 0:00:52.3]} 36... Kg8 {[%clk 0:00:13.1]} 37.
Qxh2 {[%clk 0:00:51.7]} 37... Qd3+ {[%clk 0:00:09.4]} 38. Kg4 {[%clk 0:00:50.7]}
38... Qd4+ {[%clk 0:00:08.9]} 39. Kg5 {[%clk 0:00:49.9]} 39... Qd8+ {[%clk
0:00:08.1]} 40. f6 {[%clk 0:00:45.3]} 40... Qd5+ {[%clk 0:00:08.3]} 41. Kf4
{[%clk 0:00:43.3]} 41... Qd4+ {[%clk 0:00:05.5]} 42. Re4 {[%clk 0:00:41.2]}
42... Qxf6+ {[%clk 0:00:05.5]} 43. Ke3 {[%clk 0:00:39.6]} 43... Qg5+ {[%clk
0:00:06]} 44. Ke2 {[%clk 0:00:38.2]} 44... Qb5+ {[%clk 0:00:04.4]} 45. Ke1
{[%clk 0:00:33.3]} 1-0